fUSD/lending_fUSD_20241031
["ID","MTS","AMOUNT","RATE_DAILY","PERIOD"]
[341089951,1730362244605,-500.0,0.000378,13]
[341089953,1730362244615,-500.0,0.000378,13]
[341089954,1730362244625,-500.0,0.000378,13]
[341089956,1730362244635,-500.0,0.000378,13]
[341089958,1730362244644,-500.0,0.000378,13]
[341089960,1730362244653,-500.0,0.000378,13]
[341089961,1730362244663,-500.0,0.000378,13]
[341089963,1730362244672,-500.0,0.000378,13]
[341089965,1730362244682,-500.0,0.000378,13]
[341089967,1730362244691,-500.0,0.000378,13]
[341089968,1730362244702,-500.0,0.000378,13]
[341089970,1730362244713,-500.0,0.000378,13]
[341089972,1730362244723,-500.0,0.000378,13]
[341089974,1730362244732,-500.0,0.000378,13]
[341089976,1730362244743,-500.0,0.000378,13]
[341089977,1730362244754,-500.0,0.000378,13]
[341089979,1730362244763,-500.0,0.000378,13]
[341089981,1730362244773,-500.0,0.000378,13]
[341089982,1730362244783,-500.0,0.000378,13]
[341089984,1730362244792,-500.0,0.000378,13]
[341089986,1730362244801,-500.0,0.000378,13]
[341089988,1730362244811,-500.0,0.000378,13]
[341089990,1730362244821,-500.0,0.000378,13]
[341089991,1730362244830,-513.0,0.000378,13]
[341089993,1730362244841,-500.0,0.00038,120]
[341089995,1730362244850,-156.96,0.00038031,2]
[341089996,1730362244860,-645.91054144,0.00038366,110]
[341089998,1730362244870,-950.35214093,0.00038489,15]
[341090000,1730362244880,-388.52,0.0003865,2]
[341090002,1730362244890,-169.76895659,0.00038795,7]
[341090004,1730362244899,-151.0,0.00039452,120]
[341090005,1730362244909,-162.03,0.0003947,120]
[341090007,1730362244919,-763.65,0.00039829,120]
[341090009,1730362244929,-3000.0,0.0004,120]
[341090011,1730362244939,-3000.0,0.0004,120]
[341090012,1730362244951,-161.3269697,0.0004,120]
[341090015,1730362244962,-500.0,0.0004,120]
[341090017,1730362244973,-500.86543355,0.00040068,2]
[341090018,1730362244983,-156.96,0.00040268,2]
[341090020,1730362244993,-157.86809487,0.00040625,30]
[341090022,1730362245004,-173.71146768,0.00040767,21]
[341090024,1730362245014,-388.52,0.00040913,2]
[341090027,1730362245024,-258.63,0.00041,120]
[341090029,1730362245035,-950.35214093,0.00041006,15]
[341090030,1730362245045,-277.95075,0.00041082,14]
[341090031,1730362245054,-2085.91453782,0.00041095,120]
[341090032,1730362245064,-150.0,0.00041096,2]
[341090033,1730362245074,-461.346,0.00041281,14]
[341090034,1730362245085,-1000.0,0.000413,30]
[341090035,1730362245095,-1000.0,0.000416,30]
[341090036,1730362245106,-500.0,0.00041724,30]
[341090037,1730362245120,-195.3,0.000418,31]
[341090038,1730362245129,-195.3,0.000418,31]
[341090039,1730362245139,-195.3,0.000418,31]
[341090040,1730362245151,-195.3,0.000418,31]
[341090041,1730362245161,-195.3,0.000418,31]
[341090042,1730362245172,-195.3,0.000418,31]
[341090044,1730362245184,-195.3,0.000418,31]
[341090046,1730362245194,-195.3,0.000418,31]
[341090063,1730362245351,-195.3,0.000418,31]
[341090065,1730362245360,-195.3,0.000418,31]
[341090067,1730362245370,-195.3,0.000418,31]
[341090069,1730362245380,-195.3,0.000418,31]
[341090071,1730362245390,-195.3,0.000418,31]
[341090073,1730362245401,-195.3,0.000418,31]
[341090075,1730362245411,-195.3,0.000418,31]
[341090077,1730362245421,-195.3,0.000418,31]
[341090079,1730362245431,-195.3,0.000418,31]
[341090081,1730362245440,-195.3,0.000418,31]
[341090083,1730362245449,-195.3,0.000418,31]
[341090085,1730362245461,-195.3,0.000418,31]
[341090087,1730362245470,-195.3,0.000418,31]
[341090089,1730362245481,-195.3,0.000418,31]
[341090091,1730362245491,-195.3,0.000418,31]
[341090093,1730362245501,-195.3,0.000418,31]
[341090095,1730362245510,-1000.0,0.000419,30]
[341090097,1730362245520,-173.87187554,0.00042,120]
[341090099,1730362245530,-3000.0,0.00042,120]
[341090101,1730362245540,-854.6503322,0.00042,43]
[341090103,1730362245550,-500.0,0.00042,120]
[341090104,1730362245559,-308.88563974,0.00042128,2]
[341090106,1730362245569,-152.0,0.00042184,3]
[341090108,1730362245579,-1000.0,0.000422,30]
[341090110,1730362245589,-500.0,0.00042278,14]
[341090112,1730362245599,-1000.0,0.000425,30]
[341090114,1730362245609,-151.0,0.00042603,120]
[341090117,1730362245619,-242.66130679,0.0004274,30]
[341090118,1730362245629,-1000.0,0.000428,30]
[341090120,1730362245639,-172.75622309,0.000429,120]
[341090122,1730362245648,-172.75622297,0.000429,120]
[341090124,1730362245659,-172.75622297,0.000429,120]
[341090126,1730362245669,-172.75622297,0.000429,120]
[341090128,1730362245679,-172.75622297,0.000429,120]
[341090130,1730362245688,-172.75622297,0.000429,120]
[341090132,1730362245698,-172.75622297,0.000429,120]
[341090134,1730362245709,-172.75622297,0.000429,120]
[341090136,1730362245720,-172.75622297,0.000429,120]
[341090138,1730362245730,-172.75622297,0.000429,120]
[341090140,1730362245740,-172.75622297,0.000429,120]
[341090142,1730362245750,-172.75622297,0.000429,120]
[341090144,1730362245760,-2000.0,0.00043,30]
[341090146,1730362245770,-2000.0,0.00043,30]
[341090148,1730362245780,-2000.0,0.00043,30]
[341090150,1730362245790,-2000.0,0.00043,30]
[341090152,1730362245800,-2000.0,0.00043,30]
[341090154,1730362245810,-2000.0,0.00043,30]
[341090156,1730362245820,-2000.0,0.00043,30]
[341090158,1730362245831,-2000.0,0.00043,30]
[341090160,1730362245841,-500.0,0.00043088,30]
[341090162,1730362245850,-1000.0,0.000431,30]
[341090164,1730362245861,-388.52,0.00043177,2]
[341090166,1730362245871,-172.75622297,0.00043233,120]
[341090169,1730362245882,-1000.0,0.000434,30]
[341090170,1730362245892,-950.35214093,0.00043523,15]
[341090173,1730362245902,-1000.0,0.000437,30]
[341090175,1730362245912,-2000.0,0.000438,56]
[341090176,1730362245922,-2032.736305,0.0004381,56]
[341090179,1730362245932,-2010.0,0.00043836,30]
[341090181,1730362245942,-2000.0,0.00043899,30]
[341090183,1730362245953,-2000.0,0.00043899,30]
[341090185,1730362245963,-2000.0,0.000439,57]
[341090188,1730362245973,-2000.0,0.0004391,57]
[341090191,1730362245983,-3020.110059,0.0004392,57]
[341090194,1730362245994,-162.03,0.00043933,120]
[341090197,1730362246005,-3000.0,0.00044,120]
[341090199,1730362246015,-286.44,0.00044,2]
[341090202,1730362246025,-500.0,0.00044,120]
[341090204,1730362246035,-152.0,0.00044239,4]
[341090206,1730362246045,-763.65,0.00044254,120]
[341090208,1730362246055,-172.75622297,0.00044283,120]
[341090210,1730362246065,-150.0,0.000444,120]
[341090212,1730362246075,-600.0,0.000444,120]
[341090213,1730362246085,-795.0,0.00044436,30]
[341090214,1730362246095,-150.0,0.00044436,2]
[341090215,1730362246106,-324.0,0.00044436,120]
[341090216,1730362246117,-489.0,0.00044436,120]
[341090217,1730362246127,-362.04467418,0.00044436,60]
[341090218,1730362246138,-182.9854276,0.00044436,30]
[341090219,1730362246148,-378.0,0.00044436,30]
[341090220,1730362246157,-150.1,0.00044436,40]
[341090221,1730362246166,-1500.0,0.00044436,120]
[341090222,1730362246175,-1027.46407352,0.00044436,30]
[341090223,1730362246186,-1000.0,0.00044436,30]
[341090224,1730362246195,-1000.0,0.00044436,30]
[341090225,1730362246206,-1000.0,0.00044436,30]
[341090226,1730362246214,-1000.0,0.00044436,30]
[341090227,1730362246223,-1000.0,0.00044436,30]
[341090228,1730362246233,-1000.0,0.00044436,30]
[341090229,1730362246243,-1000.0,0.00044436,30]
[341090230,1730362246252,-1000.0,0.00044436,30]
[341090231,1730362246262,-1000.0,0.00044436,30]
[341090232,1730362246271,-1000.0,0.00044436,30]
[341090233,1730362246281,-1000.0,0.00044436,30]
[341090234,1730362246289,-1059.38835,0.00044436,30]
[341090236,1730362246298,-150.0,0.00044457,120]
[341090237,1730362246308,-500.0,0.00044474,60]
[341090238,1730362246318,-500.0,0.00044474,60]
[341090239,1730362246328,-500.0,0.00044474,60]
[341090240,1730362246337,-500.0,0.00044474,60]
[341090241,1730362246347,-500.0,0.00044474,60]
[341090242,1730362246356,-228.52404072,0.00044782,2]
[341090243,1730362246366,-1000.0,0.00044792,2]
[341090245,1730362246375,-595.45504237,0.00045,120]
[341090247,1730362246384,-1000.0,0.00045,2]
[341090249,1730362246393,-1000.0,0.00045,2]
[341090251,1730362246402,-1000.0,0.00045,2]
[341090253,1730362246412,-645.91054144,0.00045133,120]
[341090255,1730362246422,-172.75622297,0.00045333,120]
[341090256,1730362246432,-388.52,0.00045441,2]
[341090258,1730362246441,-234.87735,0.000457,120]
[341090260,1730362246449,-151.0,0.00045753,120]
[341090262,1730362246461,-157.77,0.00045753,2]
[341090264,1730362246471,-195.3,0.000458,39]
[341090266,1730362246481,-195.3,0.000458,39]
[341090268,1730362246490,-195.3,0.000458,39]
[341090270,1730362246501,-195.3,0.000458,39]
[341090272,1730362246510,-195.3,0.000458,39]
[341090274,1730362246520,-195.3,0.000458,39]
[341090276,1730362246529,-195.3,0.000458,39]
[341090277,1730362246539,-195.3,0.000458,39]
[341090279,1730362246548,-195.3,0.000458,39]
[341090281,1730362246558,-195.3,0.000458,39]
[341090283,1730362246567,-195.3,0.000458,39]
[341090285,1730362246577,-195.3,0.000458,39]
[341090286,1730362246586,-195.3,0.000458,39]
[341090287,1730362246596,-195.3,0.000458,39]
[341090288,1730362246605,-195.3,0.000458,39]
[341090289,1730362246615,-195.3,0.000458,39]
[341090290,1730362246624,-195.3,0.000458,39]
[341090291,1730362246634,-195.3,0.000458,39]
[341090292,1730362246645,-195.3,0.000458,39]
[341090293,1730362246655,-195.3,0.000458,39]
[341090294,1730362246665,-195.3,0.000458,39]
[341090295,1730362246676,-195.3,0.000458,39]
[341090296,1730362246686,-195.3,0.000458,39]
[341090297,1730362246697,-195.3,0.000458,39]
[341090298,1730362246708,-500.0,0.00046,120]
[341090299,1730362246718,-950.35214093,0.0004604,15]
[341090300,1730362246727,-859.32,0.000462,7]
[341090301,1730362246736,-152.0,0.00046294,5]
[341090302,1730362246745,-2688.51850412,0.00046381,7]
[341090303,1730362246755,-172.75622297,0.00046383,120]
[341090304,1730362246764,-500.0,0.00046431,30]
[341090305,1730362246773,-5095.87,0.000466,120]
[341090306,1730362246782,-150.0,0.00046645,120]
[341090307,1730362246792,-172.75622297,0.00047433,120]
[341090308,1730362246801,-234.87735,0.000476,120]
[341090309,1730362246811,-1131.0,0.000476,7]
[341090310,1730362246820,-388.52,0.00047705,2]
[341090311,1730362246830,-311.6,0.000479,103]
[341090312,1730362246839,-504.092038,0.000479,72]
[341090313,1730362246849,-999.84,0.000479,103]
[341090314,1730362246858,-150.0,0.00048,100]
[341090315,1730362246867,-500.0,0.00048,120]
[341090316,1730362246876,-314.0,0.0004801,60]
[341090317,1730362246886,-152.0,0.00048349,6]
[341090318,1730362246895,-162.03,0.00048396,120]
[341090319,1730362246904,-172.75622297,0.00048484,120]
[341090320,1730362246913,-150.0,0.000485,101]
[341090321,1730362246922,-950.35214093,0.00048556,15]
[341090322,1730362246931,-763.65,0.0004868,120]
[341090323,1730362246940,-6733.64,0.000488,7]
[341090324,1730362246949,-6733.64,0.000488,7]
[341090325,1730362246960,-587.72,0.000488,7]
[341090326,1730362246969,-6733.64,0.000488,7]
[341090327,1730362246978,-5739.37,0.000488,7]
[341090328,1730362246987,-6733.64,0.000488,7]
[341090329,1730362246996,-200.0,0.00048812,120]
[341090330,1730362247005,-999.84,0.0004888,111]
[341090331,1730362247014,-151.0,0.00048904,120]
[341090332,1730362247023,-150.0,0.00049,102]
[341090333,1730362247032,-311.6,0.0004912,113]
[341090334,1730362247040,-150.0,0.000492,120]
[341090336,1730362247049,-150.0,0.000492,120]
[341090337,1730362247059,-150.0,0.000492,120]
[341090339,1730362247068,-150.0,0.000492,120]
[341090341,1730362247077,-181.088801,0.000492,120]
[341090343,1730362247087,-500.0,0.00049233,120]
[341090345,1730362247095,-1501.0,0.000493,2]
[341090347,1730362247107,-1500.0,0.00049315,120]
[341090349,1730362247117,-292.16,0.00049332,2]
[341090351,1730362247126,-500.0,0.00049391,120]
[341090353,1730362247135,-503.74026353,0.00049394,120]
[341090356,1730362247147,-500.0,0.00049394,120]
[341090358,1730362247157,-939.0,0.00049452,30]
[341090360,1730362247167,-817.69,0.00049454,60]
[341090362,1730362247178,-5534.73,0.00049481,7]
[341090364,1730362247189,-5307.02,0.00049481,7]
[341090366,1730362247199,-5534.73,0.00049481,7]
[341090368,1730362247210,-5534.73,0.00049481,7]
[341090370,1730362247219,-234.87735,0.000495,120]
[341090372,1730362247229,-150.0,0.000495,103]
[341090374,1730362247239,-172.75622297,0.00049534,120]
[341090376,1730362247249,-247.0,0.00049632,7]
[341090378,1730362247259,-500.0,0.00049632,120]
[341090379,1730362247271,-500.0,0.00049632,120]
[341090380,1730362247280,-500.0,0.00049632,120]
[341090381,1730362247289,-565.0,0.00049632,120]
[341090382,1730362247300,-195.3,0.000497,48]
[341090383,1730362247309,-195.3,0.000497,48]
[341090384,1730362247319,-195.3,0.000497,48]
[341090385,1730362247328,-195.3,0.000497,48]
[341090386,1730362247338,-195.3,0.000497,48]
[341090388,1730362247348,-195.3,0.000497,48]
[341090390,1730362247357,-195.3,0.000497,48]
[341090392,1730362247366,-195.3,0.000497,48]
[341090394,1730362247375,-195.3,0.000497,48]
[341090396,1730362247385,-195.3,0.000497,48]
[341090398,1730362247394,-195.3,0.000497,48]
[341090400,1730362247403,-195.3,0.000497,48]
[341090402,1730362247412,-195.3,0.000497,48]
[341090404,1730362247421,-195.3,0.000497,48]
[341090406,1730362247430,-195.3,0.000497,48]
[341090408,1730362247439,-195.3,0.000497,48]
[341090410,1730362247448,-195.3,0.000497,48]
[341090412,1730362247458,-195.3,0.000497,48]
[341090414,1730362247467,-195.3,0.000497,48]
[341090416,1730362247476,-195.3,0.000497,48]
[341090418,1730362247485,-195.3,0.000497,48]
[341090420,1730362247494,-195.3,0.000497,48]
[341090421,1730362247504,-195.3,0.000497,48]
[341090423,1730362247513,-195.3,0.000497,48]
[341090425,1730362247522,-159.87248925,0.000497,10]
[341090427,1730362247531,-500.0,0.000497,10]
[341090429,1730362247540,-500.0,0.000497,10]
[341090431,1730362247549,-500.0,0.000497,10]
[341090433,1730362247559,-500.0,0.00049781,120]
[341090435,1730362247568,-999.84,0.0004986,119]
[341090437,1730362247577,-500.0,0.0004986,120]
[341090439,1730362247586,-150.0,0.00049933,120]
[341090441,1730362247596,-318.48756727,0.00049942,120]
[341090443,1730362247605,-388.52,0.00049969,2]
[341090445,1730362247614,-359.85,0.0005,120]
[341090447,1730362247623,-392.45,0.0005,120]
[341090449,1730362247635,-1984.9,0.0005,120]
[341090451,1730362247645,-424.89,0.0005,120]
[341090453,1730362247654,-2591.25,0.0005,120]
[341090455,1730362247664,-1041.74,0.0005,120]
[341090457,1730362247673,-1984.91,0.0005,120]
[341090459,1730362247683,-504.092038,0.0005,81]
[341090461,1730362247692,-150.0,0.0005,104]
[341090463,1730362247702,-1000.0,0.0005,30]
[341090465,1730362247712,-2000.0,0.0005,120]
[341090467,1730362247722,-500.0,0.0005,120]
[341090469,1730362247731,-13000.0,0.0005,120]
[341090471,1730362247740,-42606.28,0.00050091,7]
[341090473,1730362247750,-5640.25,0.00050091,7]
[341090475,1730362247759,-15861.2,0.00050091,7]
[341090477,1730362247768,-200.0,0.00050234,120]
[341090479,1730362247779,-181.72,0.00050267,120]
[341090481,1730362247789,-531.651496,0.00050306,60]
[341090483,1730362247799,-311.6,0.0005034,120]
[341090485,1730362247808,-1000.0,0.00050391,120]
[341090498,1730362247928,-152.0,0.00050404,7]
[341090499,1730362247938,-221.16941257,0.00050405,30]
[341090501,1730362247948,-203500.0,0.0005044,30]
[341090503,1730362247958,-500.0,0.00050444,120]
[341090505,1730362247967,-1109.46662799,0.00050484,120]
[341090507,1730362247976,-150.0,0.000505,105]
[341090509,1730362247986,-172.75622297,0.00050584,120]
[341090511,1730362247995,-371.47099381,0.00050584,2]
[341090513,1730362248004,-231.78142772,0.00050584,2]
[341090515,1730362248013,-2099.72737649,0.00050584,2]
[341090517,1730362248023,-1000.0,0.00050584,2]
[341090519,1730362248032,-502.2264,0.00050584,2]
[341090521,1730362248042,-26216.9193,0.00050584,2]
[341090523,1730362248051,-150.5,0.00050654,120]
[341090525,1730362248060,-150.5,0.00050654,30]
[341090527,1730362248070,-150.5,0.00050664,120]
[341090529,1730362248083,-150.5,0.00050664,30]
[341090531,1730362248093,-500.0,0.00050673,10]
[341090533,1730362248102,-357.07811684,0.00050673,10]
[341090535,1730362248115,-500.0,0.00050673,5]
[341090537,1730362248124,-150.5,0.00050674,120]
[341090539,1730362248133,-150.5,0.00050674,30]
[341090541,1730362248142,-1697.81187148,0.00050682,120]
[341090543,1730362248154,-633.50292988,0.00050682,90]
[341090545,1730362248164,-181.12313892,0.00050682,90]
[341090547,1730362248174,-1000.0,0.00050683,120]
[341090549,1730362248184,-3012.1,0.00050683,120]
[341090551,1730362248193,-500.0,0.00050684,120]
[341090553,1730362248202,-500.0,0.00050684,120]
[341090555,1730362248216,-500.0,0.00050684,120]
[341090557,1730362248225,-387.4465262,0.00050684,120]
[341090559,1730362248235,-500.0,0.00050684,5]
[341090561,1730362248245,-500.0,0.00050684,5]
[341090563,1730362248255,-500.0,0.00050684,16]
[341090565,1730362248264,-501.86864651,0.00050684,16]
[341090567,1730362248274,-486.81348078,0.00050684,120]
[341090569,1730362248283,-588.06,0.00050684,120]
[341090571,1730362248292,-588.06,0.00050684,120]
[341090573,1730362248302,-588.06,0.00050684,120]
[341090575,1730362248312,-588.06,0.00050684,120]
[341090577,1730362248322,-588.06,0.00050684,120]
[341090579,1730362248331,-588.06,0.00050684,120]
[341090581,1730362248341,-588.06,0.00050684,120]
[341090583,1730362248350,-588.06,0.00050684,120]
[341090585,1730362248359,-588.06,0.00050684,120]
[341090587,1730362248369,-588.06,0.00050684,120]
[341090589,1730362248378,-588.06,0.00050684,120]
[341090592,1730362248389,-588.06,0.00050684,120]
[341090593,1730362248398,-588.06,0.00050684,120]
[341090595,1730362248407,-588.06,0.00050684,120]
[341090597,1730362248417,-588.06,0.00050684,120]
[341090599,1730362248426,-588.06,0.00050684,120]
[341090601,1730362248436,-588.06,0.00050684,120]
[341090603,1730362248445,-588.06,0.00050684,120]
[341090605,1730362248459,-588.06,0.00050684,120]
[341090608,1730362248471,-588.06,0.00050684,120]
[341090610,1730362248481,-588.06,0.00050684,120]
[341090612,1730362248491,-588.06,0.00050684,120]
[341090614,1730362248500,-588.06,0.00050684,120]
[341090615,1730362248509,-588.17268963,0.00050684,120]
[341090617,1730362248519,-500.0,0.00050684,120]
[341090619,1730362248528,-500.0,0.00050684,120]
[341090621,1730362248538,-163.71439521,0.00050684,120]
[341090623,1730362248547,-500.0,0.00050684,120]
[341090625,1730362248556,-500.0,0.00050684,120]
[341090627,1730362248565,-500.0,0.00050684,120]
[341090629,1730362248574,-500.0,0.00050684,120]
[341090631,1730362248583,-500.0,0.00050684,120]
[341090633,1730362248593,-500.0,0.00050684,120]
[341090635,1730362248602,-500.0,0.00050684,120]
[341090637,1730362248611,-500.0,0.00050684,120]
[341090639,1730362248620,-500.0,0.00050684,120]
[341090641,1730362248630,-500.0,0.00050684,120]
[341090643,1730362248639,-619.03580333,0.00050684,120]
[341090645,1730362248648,-500.0,0.00050684,120]
[341090647,1730362248657,-500.0,0.00050684,120]
[341090649,1730362248667,-500.0,0.00050684,120]
[341090651,1730362248675,-500.0,0.00050684,120]
[341090653,1730362248685,-500.0,0.00050684,120]
[341090655,1730362248695,-500.0,0.00050684,120]
[341090657,1730362248705,-500.0,0.00050684,120]
[341090659,1730362248715,-500.0,0.00050684,120]
[341090661,1730362248724,-500.0,0.00050684,120]
[341090663,1730362248734,-500.0,0.00050684,120]
[341090665,1730362248743,-500.0,0.00050684,120]
[341090666,1730362248752,-500.0,0.00050684,120]
[341090668,1730362248762,-349.2611379,0.00050684,120]
[341090671,1730362248772,-500.0,0.00050684,120]
[341090673,1730362248781,-500.0,0.00050684,120]
[341090675,1730362248791,-500.0,0.00050684,120]
[341090676,1730362248801,-500.0,0.00050684,120]
[341090678,1730362248810,-193.27508235,0.00050684,120]
[341090680,1730362248820,-500.0,0.00050684,120]
[341090682,1730362248829,-500.0,0.00050684,120]
[341090684,1730362248839,-500.0,0.00050684,120]
[341090686,1730362248848,-500.0,0.00050684,120]
[341090688,1730362248857,-500.0,0.00050684,120]
[341090690,1730362248866,-500.0,0.00050684,120]
[341090692,1730362248876,-636.54014893,0.00050684,120]
[341090694,1730362248885,-678.98,0.00050684,120]
[341090696,1730362248894,-678.98,0.00050684,120]
[341090698,1730362248903,-678.98,0.00050684,120]
[341090700,1730362248912,-678.98,0.00050684,120]
[341090702,1730362248921,-678.98,0.00050684,120]
[341090704,1730362248931,-678.98,0.00050684,120]
[341090706,1730362248941,-678.98,0.00050684,120]
[341090708,1730362248950,-678.98,0.00050684,120]
[341090710,1730362248961,-678.98,0.00050684,120]
[341090712,1730362248970,-678.98,0.00050684,120]
[341090714,1730362248980,-678.98,0.00050684,120]
[341090716,1730362248990,-678.98,0.00050684,120]
[341090718,1730362248999,-678.98,0.00050684,120]
[341090720,1730362249008,-678.98,0.00050684,120]
[341090722,1730362249018,-678.98,0.00050684,120]
[341090724,1730362249027,-678.98,0.00050684,120]
[341090726,1730362249036,-678.98,0.00050684,120]
[341090728,1730362249045,-361.98943032,0.00050684,120]
[341090730,1730362249054,-678.98,0.00050684,120]
[341090732,1730362249063,-678.98,0.00050684,120]
[341090734,1730362249072,-678.98,0.00050684,120]
[341090736,1730362249081,-678.98,0.00050684,120]
[341090738,1730362249090,-678.98,0.00050684,120]
[341090740,1730362249099,-678.98,0.00050684,120]
[341090742,1730362249113,-679.19408633,0.00050684,120]
[341090744,1730362249122,-819.24,0.00050684,120]
[341090746,1730362249132,-819.24,0.00050684,120]
[341090748,1730362249141,-819.24,0.00050684,120]
[341090750,1730362249152,-819.24,0.00050684,120]
[341090752,1730362249161,-500.0,0.00050684,120]
[341090754,1730362249170,-819.24,0.00050684,120]
[341090756,1730362249179,-500.0,0.00050684,120]
[341090758,1730362249188,-819.24,0.00050684,120]
[341090760,1730362249198,-500.0,0.00050684,120]
[341090762,1730362249208,-819.24,0.00050684,120]
[341090764,1730362249217,-500.0,0.00050684,120]
[341090766,1730362249226,-819.24,0.00050684,120]
[341090768,1730362249235,-500.0,0.00050684,120]
[341090770,1730362249245,-819.24,0.00050684,120]
[341090772,1730362249254,-500.0,0.00050684,120]
[341090774,1730362249265,-819.24,0.00050684,120]
[341090776,1730362249274,-500.0,0.00050684,120]
[341090778,1730362249283,-819.24,0.00050684,120]
[341090780,1730362249292,-500.0,0.00050684,120]
[341090782,1730362249302,-819.24,0.00050684,120]
[341090784,1730362249310,-500.0,0.00050684,120]
[341090786,1730362249319,-819.24,0.00050684,120]
[341090788,1730362249329,-500.0,0.00050684,120]
[341090790,1730362249338,-819.24,0.00050684,120]
[341090791,1730362249347,-500.0,0.00050684,120]
[341090792,1730362249356,-819.24,0.00050684,120]
[341090793,1730362249366,-500.0,0.00050684,120]
[341090794,1730362249375,-819.24,0.00050684,120]
[341090795,1730362249385,-819.24,0.00050684,120]
[341090796,1730362249394,-500.0,0.00050684,120]
[341090797,1730362249404,-819.24,0.00050684,120]
[341090798,1730362249414,-500.0,0.00050684,120]
[341090799,1730362249423,-819.24,0.00050684,120]
[341090801,1730362249433,-500.0,0.00050684,120]
[341090803,1730362249442,-819.24,0.00050684,120]
[341090805,1730362249451,-500.0,0.00050684,120]
[341090807,1730362249462,-819.24,0.00050684,120]
[341090809,1730362249472,-500.0,0.00050684,120]
[341090811,1730362249481,-819.24,0.00050684,120]
[341090813,1730362249491,-500.0,0.00050684,120]
[341090815,1730362249501,-819.24,0.00050684,120]
[341090817,1730362249510,-819.36141665,0.00050684,120]
[341090819,1730362249519,-500.0,0.00050684,120]
[341090821,1730362249529,-500.0,0.00050684,120]
[341090823,1730362249538,-486.33418535,0.00050684,120]
[341090825,1730362249548,-500.0,0.00050684,120]
[341090826,1730362249557,-500.0,0.00050684,120]
[341090827,1730362249566,-500.0,0.00050684,120]
[341090828,1730362249576,-500.0,0.00050684,120]
[341090829,1730362249585,-838.77,0.00050684,120]
[341090830,1730362249594,-838.77,0.00050684,120]
[341090831,1730362249603,-838.77,0.00050684,120]
[341090832,1730362249612,-838.77,0.00050684,120]
[341090833,1730362249621,-838.77,0.00050684,120]
[341090834,1730362249631,-838.77,0.00050684,120]
[341090835,1730362249640,-838.77,0.00050684,120]
[341090836,1730362249649,-838.77,0.00050684,120]
[341090837,1730362249658,-838.77,0.00050684,120]
[341090838,1730362249667,-838.77,0.00050684,120]
[341090839,1730362249676,-838.77,0.00050684,120]
[341090840,1730362249685,-838.77,0.00050684,120]
[341090841,1730362249694,-838.77,0.00050684,120]
[341090842,1730362249703,-838.77,0.00050684,120]